bitfinex/quotes_SOLUSD_20240809
["timestamp","ask_amount","ask_price","bid_price","bid_amount"]
[1723242641522,0.3418172,155.0,154.97,40.08]
[1723242641812,0.3418172,155.0,154.95,40.08]
[1723242643014,0.3418172,155.0,154.96,1.29045077]
[1723242643200,0.3418172,155.0,154.97,40.08]
[1723242643889,0.3418172,155.0,154.99,40.08]
[1723242644402,0.3418172,155.0,154.99,40.20549]
[1723242644729,0.3418172,155.0,154.99,40.08]
[1723242644918,0.3418172,155.0,154.97,40.08]
[1723242645615,0.3418172,155.0,154.98,1.29021241]
[1723242645820,0.3418172,155.0,154.97,40.08]
[1723242645989,39.9218172,155.08,154.97,40.08]
[1723242646391,6.406,155.09,155.01,40.08]
[1723242646821,6.406,155.09,154.99,40.08]
[1723242647494,6.406,155.09,155.0,20.0]
[1723242647693,3.32941991,155.11,155.0,20.0]
[1723242647907,3.32941991,155.11,155.02,40.08]
[1723242648113,3.32941991,155.11,155.03,20.0]
[1723242648697,1.61207059,155.1,155.03,20.0]
[1723242650017,3.32941991,155.11,155.03,20.0]
[1723242650392,1.61193845,155.1,155.03,20.0]
[1723242650802,3.32941991,155.11,155.03,20.0]
[1723242651816,3.32941991,155.11,155.04,40.08]
[1723242652119,3.32941991,155.12,155.06,40.08]
[1723242652497,3.32941991,155.12,155.07,1.28938012]
[1723242652702,3.32941991,155.12,155.08,1.28932594]
[1723242653096,3.32941991,155.12,155.08,40.08]
[1723242653311,0.8418172,155.16,155.1,40.08]
[1723242653491,0.8418172,155.16,155.11,0.12549]
[1723242653893,0.8418172,155.16,155.1,40.08]
[1723242654112,0.8418172,155.16,155.1,34.08]
[1723242654305,46.5221,155.23,155.1,34.08]
[1723242654306,0.8418172,155.31,155.16,0.12549]
[1723242654493,0.8418172,155.31,155.15,40.08]
[1723242654494,40.08,155.27,155.15,40.08]
[1723242654693,40.08,155.25,155.13,40.08]
[1723242654900,40.08,155.27,155.15,40.08]
[1723242655112,48.1308846,155.29,155.16,0.12549]
[1723242655319,47.63054971,155.29,155.15,40.08]
[1723242655499,47.63054971,155.29,155.14,19.58319277]
[1723242655500,40.08,155.27,155.14,0.12549]
[1723242655834,1.61089763,155.26,155.15,20.0]
[1723242656037,6.406,155.3,155.15,60.08]
[1723242656198,40.08,155.28,155.15,40.08]
[1723242656591,40.08,155.28,155.11,40.08]
[1723242656592,46.5218,155.24,155.11,40.08]
[1723242656807,55.3903,155.26,155.13,40.08]
[1723242657008,15.3103,155.26,155.15,40.08]
[1723242657298,46.5217,155.24,155.12,20.12549]
[1723242657706,40.08,155.24,155.12,20.12549]
[1723242657901,21.7511,155.26,155.15,40.08]
[1723242658103,15.3103,155.26,155.16,1.28870267]
[1723242658326,15.3103,155.26,155.17,40.08]
[1723242658531,6.4419,155.24,155.13,40.08]
[1723242658830,1.61104316,155.25,155.15,40.08]
[1723242659010,1.61104316,155.25,155.13,40.08]
[1723242659011,6.4415,155.25,155.13,40.08]
[1723242659705,57.00118246,155.26,155.13,40.08]
[1723242659706,63.44198246,155.26,155.13,40.08]
[1723242660017,15.3103,155.26,155.15,40.20549]
[1723242660202,15.3103,155.26,155.16,0.25098]
[1723242660403,15.3103,155.26,155.17,40.08]
[1723242660623,15.3103,155.26,155.15,40.08]
[1723242660826,15.3103,155.26,155.12,20.0]
[1723242660827,40.08,155.24,155.12,20.0]
[1723242661130,6.5301,155.25,155.13,40.20549]
[1723242661311,6.5301,155.25,155.14,21.28878872]
[1723242661508,40.08,155.24,155.11,40.08]
[1723242661711,46.5217,155.24,155.12,20.0]
[1723242661914,40.08,155.24,155.13,1.28887074]
[1723242662528,46.5216,155.24,155.14,1.28888106]
[1723242662746,46.5216,155.24,155.12,20.0]
[1723242662747,40.08,155.24,155.12,20.0]
[1723242663543,40.08,155.24,155.13,1.28884612]
[1723242663710,40.08,155.24,155.13,41.36884612]
[1723242663911,6.5301,155.25,155.14,1.28868926]
[1723242664132,6.5301,155.25,155.15,1.28872397]
[1723242664339,6.5301,155.25,155.15,41.36872397]
[1723242664519,6.5301,155.25,155.13,40.08]
[1723242664713,6.5301,155.25,155.15,40.08]
[1723242665030,6.5301,155.25,155.16,1.28853532]
[1723242665233,6.5301,155.25,155.18,40.08]
[1723242665406,15.3103,155.26,155.19,1.28838028]
[1723242665612,6.5301,155.29,155.19,1.28838028]
[1723242666632,6.5301,155.29,155.17,0.25098]
[1723242666835,6.44,155.28,155.17,1.28846325]
[1723242667014,6.5301,155.29,155.18,41.36842474]
[1723242667333,6.5301,155.29,155.19,65.25098]
[1723242667540,6.5301,155.29,155.2,41.36819102]
[1723242667836,0.8418172,155.31,155.22,40.08]
[1723242668042,0.8418172,155.31,155.26,40.08]
[1723242668244,0.8418172,155.31,155.28,40.08]
[1723242668413,0.8418172,155.31,155.3,40.08]
[1723242669027,0.8418172,155.31,155.3,40.20549]
[1723242669221,12.04493905,155.47,155.32,19.33221277]
[1723242669222,10.92509839,155.47,155.32,19.33221277]
[1723242669421,6.4334,155.44,155.33,20.0]
[1723242669829,48.12260114,155.43,155.33,20.0]
[1723242670028,8.04324024,155.42,155.3,40.08]
[1723242670229,46.5154,155.39,155.28,40.08]
[1723242670419,41.5162,155.37,155.24,19.33221277]
[1723242670620,40.08,155.35,155.22,59.41221277]
[1723242670830,40.08,155.35,155.24,40.08]
[1723242671041,46.5171,155.35,155.24,40.08]
[1723242671337,46.6101,155.31,155.2,40.08]
[1723242671640,6.4399,155.28,155.16,59.41221277]
[1723242671844,40.08,155.29,155.18,40.08]
[1723242672018,15.3103,155.3,155.18,40.08]
[1723242672019,16.92069164,155.3,155.18,40.08]
[1723242672344,40.08,155.27,155.16,40.08]
[1723242672524,1.61071692,155.26,155.16,40.08]
[1723242672720,1.61071692,155.26,155.15,19.33221277]
[1723242672927,40.08,155.27,155.15,19.33221277]
[1723242673130,46.5203,155.27,155.15,19.33221277]
[1723242673323,40.08,155.25,155.13,40.08]
[1723242673528,40.08,155.23,155.11,40.08]
[1723242674041,6.5301,155.31,155.13,40.08]
[1723242674042,15.3103,155.3,155.13,40.08]
[1723242674217,40.08,155.25,155.13,40.08]
[1723242674754,1.61108816,155.24,155.13,40.08]
[1723242674918,1.61108816,155.24,155.11,40.08]
[1723242675120,40.08,155.25,155.11,40.08]
[1723242675439,6.56629,155.26,155.11,40.08]
[1723242675440,40.08,155.23,155.11,40.08]
[1723242675620,40.08,155.23,155.12,20.0]
[1723242675815,40.08,155.25,155.13,40.08]
[1723242676216,40.08,155.27,155.15,40.08]
[1723242676546,60.08,155.29,155.17,40.08]
[1723242676839,46.6101,155.31,155.19,40.08]
[1723242677042,1.6105855,155.29,155.17,40.08]
[1723242677211,1.6105855,155.29,155.18,20.0]
[1723242677415,46.6101,155.31,155.19,40.08]
[1723242677615,6.5301,155.31,155.19,40.08]
[1723242677839,6.5301,155.31,155.18,39.33221277]
[1723242677840,6.5301,155.31,155.23,40.08]
[1723242678218,23.077,155.37,155.25,40.08]
[1723242678429,23.077,155.37,155.27,40.08]
[1723242678636,23.077,155.37,155.28,1.28779593]
[1723242678825,23.077,155.37,155.27,40.08]
[1723242679638,31.12325884,155.37,155.25,40.08]
[1723242679842,31.12325884,155.37,155.23,47.8]
[1723242680042,23.077,155.37,155.24,66.53878606]
[1723242680238,23.077,155.37,155.26,47.8]
[1723242680630,6.6296,155.37,155.27,1.41314719]
[1723242680825,6.6296,155.37,155.29,47.8]
[1723242681030,6.6296,155.37,155.3,1.2874077]
[1723242681624,6.2127,155.43,155.31,0.12549]
[1723242681827,6.2127,155.43,155.32,47.8]
[1723242682335,6.2127,155.43,155.33,46.28717597]
[1723242682652,6.2127,155.43,155.34,21.41253225]
[1723242682844,0.8418172,155.47,155.38,47.8]
[1723242683335,0.8418172,155.47,155.39,1.53757017]
[1723242683539,0.8418172,155.47,155.39,65.25098]
[1723242684326,1.60820687,155.55,155.39,65.25098]
[1723242684327,1.11966689,155.59,155.43,47.8]
[1723242684530,16.9060172,155.63,155.43,47.8]
[1723242684531,21.3583,155.58,155.43,49.08614522]
[1723242684722,27.7858,155.58,155.44,66.66257888]
[1723242684940,21.3583,155.58,155.44,66.66257888]
[1723242685445,1.60770068,155.57,155.44,20.0]
[1723242685660,21.3583,155.58,155.45,1.41178315]
[1723242685944,27.7859,155.58,155.45,1.41153399]
[1723242686144,27.7859,155.58,155.46,1.28606638]
[1723242686341,27.7859,155.58,155.45,0.12549]
[1723242686751,21.3583,155.58,155.46,1.28611024]
[1723242687147,1.60743366,155.57,155.43,47.8]
[1723242687451,6.4281,155.57,155.44,65.0]
[1723242687751,8.03608697,155.56,155.44,20.0]
[1723242687926,6.4284,155.56,155.44,20.0]
[1723242688127,6.428,155.57,155.43,47.8]
[1723242688327,1.60783496,155.56,155.44,20.0]
[1723242688530,6.4302,155.52,155.38,19.33221277]
[1723242688734,1.60810307,155.51,155.38,19.33221277]
[1723242688956,0.12549,155.55,155.38,19.33221277]
[1723242689154,6.4296,155.53,155.38,19.33221277]
[1723242689353,26.4284,155.56,155.36,47.8]
[1723242689529,0.12549,155.55,155.38,19.33221277]
[1723242689732,6.4297,155.53,155.39,47.8]
[1723242689939,1.60814285,155.53,155.39,47.8]
[1723242690134,47.8,155.55,155.39,47.8]
[1723242690343,26.4283,155.57,155.42,47.8]
[1723242690546,20.0,155.57,155.42,67.13221277]
[1723242690743,20.0,155.57,155.43,1.28618038]
[1723242690957,21.60771269,155.57,155.42,67.13221277]
[1723242691250,21.3583,155.58,155.43,66.66271079]
[1723242691459,21.3583,155.58,155.45,19.33221277]
[1723242691832,21.3583,155.58,155.45,20.61837245]
[1723242692031,21.3583,155.58,155.46,21.41155865]
[1723242692234,21.3583,155.58,155.47,45.0]
[1723242692463,21.3583,155.58,155.49,19.33221277]
[1723242692636,15.1456,155.58,155.5,0.12549]
[1723242692831,2.44920578,155.63,155.5,45.37647]
[1723242693052,2.44920578,155.63,155.51,19.33221277]
[1723242693266,1.60704967,155.62,155.51,19.33221277]
[1723242693435,1.60704967,155.62,155.49,19.33221277]
[1723242693639,0.8418172,155.63,155.51,47.8]
[1723242693865,8.0330771,155.62,155.48,47.8]
[1723242694163,0.8418172,155.63,155.49,20.0]
[1723242694351,1.60731392,155.61,155.49,20.0]
[1723242694532,1.607262,155.6,155.49,20.0]
[1723242695162,6.4264,155.61,155.49,20.0]
[1723242695363,8.03407514,155.6,155.49,20.0]
[1723242695672,6.4272,155.59,155.49,20.0]
[1723242695953,47.92549,155.61,155.47,20.0]
[1723242696135,6.4283,155.57,155.42,47.8]
[1723242696335,1.60769744,155.56,155.42,47.8]
[1723242696564,8.03597773,155.57,155.42,47.8]
[1723242696933,6.4285,155.56,155.42,47.8]
[1723242697132,6.4295,155.54,155.39,67.13221277]
[1723242697445,1.60801926,155.53,155.39,67.13221277]
[1723242697758,16.0607,155.66,155.47,47.8]
[1723242697939,16.0607,155.66,155.45,19.33221277]
[1723242697940,47.8,155.67,155.51,19.33221277]
[1723242698263,6.4251,155.64,155.51,19.33221277]
[1723242698462,2.44890586,155.63,155.5,67.13221277]
[1723242698762,2.44890586,155.63,155.52,19.33221277]
[1723242698763,0.8418172,155.63,155.52,19.33221277]
[1723242699057,0.8418172,155.63,155.53,20.0]
[1723242699362,0.8418172,155.63,155.54,1.28557823]
[1723242699669,0.8418172,155.63,155.56,19.33221277]
[1723242699844,0.8418172,155.63,155.57,21.28532618]
[1723242700177,0.8418172,155.63,155.57,20.0]
[1723242700538,0.8418172,155.63,155.54,20.0]
[1723242701462,0.8418172,155.63,155.55,19.33221277]
[1723242701649,0.8418172,155.63,155.56,20.0]
[1723242701962,0.8418172,155.63,155.62,67.13221277]
[1723242702164,7.3674172,155.78,155.65,19.33221277]
[1723242702466,7.3674172,155.78,155.66,39.33221277]
[1723242702669,6.8674172,155.78,155.66,39.33221277]
[1723242703363,6.8674172,155.78,155.68,47.8]
[1723242704571,6.8674172,155.78,155.68,49.08428401]
[1723242704873,6.8674172,155.78,155.69,0.12549]
[1723242705456,0.3418172,155.78,155.68,67.13221277]
[1723242705768,0.3418172,155.78,155.71,47.8]
[1723242706264,0.3418172,155.78,155.69,20.0]
[1723242706456,0.3418172,155.78,155.7,1.28394566]
[1723242706640,0.3418172,155.78,155.69,20.0]
[1723242706846,0.3418172,155.78,155.7,0.25098]
[1723242707564,0.3418172,155.78,155.7,0.12549]
[1723242707770,0.3418172,155.78,155.69,20.0]
[1723242707947,0.3418172,155.78,155.7,0.12549]
[1723242708144,0.3418172,155.78,155.69,20.0]
[1723242708763,0.3418172,155.78,155.65,67.13221277]
[1723242709075,0.3418172,155.78,155.68,47.8]
[1723242709263,0.3418172,155.78,155.69,1.28426138]
[1723242709461,0.3418172,155.78,155.68,68.41647844]
[1723242709786,0.3418172,155.78,155.63,28.64006461]
[1723242709787,0.3418172,155.78,155.71,47.8]
[1723242709974,0.3418172,155.78,155.68,67.13221277]
[1723242710277,0.3418172,155.78,155.69,85.86733867]
[1723242710459,0.3418172,155.78,155.7,0.12549]
[1723242710660,0.3418172,155.78,155.72,0.12549]
[1723242710981,0.3418172,155.78,155.76,47.8]
[1723242711157,0.3418172,155.78,155.77,39.33221277]
[1723242711479,22.708,155.95,155.77,39.33221277]
[1723242711776,47.8,155.9,155.73,49.08346502]
[1723242711983,6.4155,155.88,155.73,47.8]
[1723242712185,6.4156,155.87,155.73,47.8]
[1723242712357,6.4153,155.88,155.73,47.8]
[1723242712672,16.1824,155.86,155.74,1.28389655]
[1723242712875,16.1824,155.86,155.74,1.2838429]
[1723242713170,16.1824,155.86,155.74,1.28387292]
[1723242713677,16.1824,155.86,155.74,1.28384194]
[1723242713981,16.1824,155.86,155.73,67.13221277]
[1723242714160,16.1824,155.86,155.73,47.8]
[1723242714361,16.1824,155.86,155.74,1.2838269]
[1723242715285,16.1824,155.86,155.73,47.8]
[1723242715459,1.6047502,155.85,155.73,47.8]
[1723242715659,0.12549,155.85,155.73,47.8]
[1723242715867,0.12549,155.85,155.74,1.28395435]
[1723242716462,16.1824,155.86,155.73,47.8]
[1723242716677,16.1824,155.86,155.74,1.28381631]
[1723242717263,16.1824,155.86,155.74,46.28381631]
[1723242717577,1.60456761,155.85,155.73,47.92549]
[1723242717773,16.1824,155.86,155.73,47.8]
[1723242717958,16.1824,155.86,155.74,1.53478364]
[1723242718159,16.1824,155.86,155.74,21.53478364]
[1723242718371,16.1824,155.86,155.74,20.12549]
[1723242718573,16.1824,155.86,155.75,1.28372861]
[1723242718774,16.1824,155.86,155.74,20.0]
[1723242718981,6.5256,155.89,155.75,19.33221277]
[1723242719196,6.5256,155.89,155.77,19.33221277]
[1723242719477,0.8418172,155.94,155.81,19.33221277]
[1723242719478,7.1387172,155.94,155.81,19.33221277]
[1723242719684,7.1387172,155.94,155.79,74.64985731]
[1723242719860,7.1387172,155.94,155.81,19.33221277]
[1723242720055,7.1387172,155.94,155.82,0.25098]
[1723242720467,7.1387172,155.94,155.82,20.0]
[1723242720852,1.60390573,155.93,155.79,67.13221277]
[1723242721085,13.5514172,155.94,155.8,20.0]
[1723242721276,6.414,155.91,155.79,19.33221277]
[1723242721466,1.60438165,155.9,155.76,47.8]
[1723242721788,15.41989,155.87,155.73,47.8]
[1723242721963,15.41989,155.87,155.7,25.56661277]
[1723242721964,6.4164,155.85,155.7,73.36661277]
[1723242722277,46.60501816,155.84,155.7,67.13221277]
[1723242722474,47.8,155.86,155.71,1.28406588]
[1723242722779,47.8,155.86,155.7,47.8]
[1723242722972,53.52344403,155.85,155.7,47.8]
[1723242723377,6.2969,155.83,155.7,47.8]
[1723242723558,1.60513326,155.82,155.67,67.13221277]
[1723242723763,1.60513326,155.82,155.67,47.8]
[1723242724193,54.0969,155.83,155.67,47.8]
[1723242724487,1.60521901,155.82,155.67,47.8]
[1723242724987,6.2969,155.83,155.7,47.8]
[1723242725371,6.2969,155.83,155.72,19.33221277]
[1723242725686,6.2969,155.83,155.73,69.0838441]
[1723242725982,6.2969,155.83,155.74,1.2839613]
[1723242726168,6.2969,155.83,155.74,1.28393679]
[1723242726360,6.2969,155.83,155.73,67.8]
[1723242726561,15.2944,155.87,155.76,47.8]
[1723242726774,15.2944,155.87,155.77,39.33221277]
[1723242727276,16.89883483,155.87,155.76,47.8]
[1723242727458,16.89883483,155.87,155.73,47.8]
[1723242728067,0.12549,155.86,155.73,47.8]
[1723242728266,1.73036143,155.86,155.73,47.8]
[1723242728464,1.60487106,155.85,155.68,28.31050052]
[1723242728669,0.12549,155.82,155.69,47.8]
[1723242728867,1.85631882,155.82,155.69,47.8]
[1723242729089,1.73082882,155.82,155.69,47.8]
[1723242729457,0.12549,155.82,155.69,47.8]
[1723242729772,45.37647,155.83,155.69,47.8]
[1723242730293,21.5913,155.78,155.66,47.8]
[1723242730583,1.605665,155.77,155.66,47.8]
[1723242730787,1.60566838,155.76,155.66,47.8]
[1723242730965,21.5913,155.78,155.66,47.8]
[1723242731590,1.6055858,155.77,155.66,47.8]
[1723242731772,45.0,155.77,155.66,47.8]
[1723242732090,21.5913,155.78,155.66,47.8]
[1723242732782,46.85672791,155.77,155.63,47.8]
[1723242732990,45.25098,155.77,155.63,49.08468087]
[1723242733190,21.5913,155.78,155.64,1.28470551]
[1723242733375,21.5913,155.78,155.63,47.8]
[1723242733576,21.5913,155.78,155.66,47.8]
[1723242734087,21.5913,155.78,155.66,67.13221277]
[1723242734274,21.5913,155.78,155.67,20.0]
[1723242734586,21.5913,155.78,155.64,1.2845988]
[1723242734587,0.12549,155.76,155.61,6.71085692]
[1723242734812,1.73157864,155.76,155.61,54.51085692]
[1723242734996,1.73154763,155.75,155.61,54.51085692]
[1723242735282,0.12549,155.76,155.61,54.51085692]
[1723242735488,0.12549,155.65,155.51,9.16261719]
[1723242735670,0.25098,155.65,155.5,47.8]
[1723242735983,0.12549,155.63,155.5,47.8]
[1723242736183,1.73272676,155.63,155.5,47.8]
[1723242736390,0.12549,155.61,155.47,47.8]
[1723242736575,46.73304682,155.61,155.47,47.8]
[1723242736775,53.15964682,155.61,155.47,47.8]
[1723242737162,20.0,155.6,155.44,47.8]
[1723242737393,6.2192,155.6,155.47,47.8]
[1723242737567,0.12549,155.59,155.47,47.8]
[1723242737774,0.12549,155.59,155.44,19.33221277]
[1723242737775,53.16027002,155.59,155.44,47.8]
[1723242737978,0.25098,155.58,155.44,47.8]
[1723242738291,0.12549,155.55,155.39,0.8418172]
[1723242738495,1.85945011,155.55,155.39,0.8418172]
[1723242738668,0.12549,155.53,155.39,0.8418172]
[1723242738873,6.43,155.52,155.39,0.8418172]
[1723242739075,0.12549,155.5,155.39,0.8418172]
[1723242739291,8.41618541,155.5,155.39,0.8418172]
[1723242739475,6.2192,155.47,155.39,0.8418172]
[1723242739778,1.60885614,155.46,155.39,0.8418172]
[1723242739982,16.5134,155.44,155.3,47.8]
[1723242740897,60.57719,155.47,155.36,47.8]
[1723242740898,6.2192,155.47,155.36,47.8]
[1723242741195,16.5134,155.52,155.42,47.8]
[1723242741494,16.5134,155.52,155.39,47.8]
[1723242741495,22.9434,155.52,155.39,47.8]
[1723242741699,1.60846838,155.51,155.36,47.8]
[1723242741877,26.4308,155.51,155.37,1.28694038]
[1723242742197,20.0,155.51,155.37,1.28688507]
[1723242742494,6.4318,155.48,155.36,47.8]
[1723242742697,16.5134,155.52,155.37,67.50183629]
[1723242742871,16.5134,155.52,155.43,47.8]
[1723242743076,6.2192,155.55,155.44,1.28627507]
[1723242743295,1.60775753,155.54,155.43,47.8]
[1723242743496,6.2192,155.55,155.43,47.8]
[1723242743798,6.2192,155.55,155.46,47.8]
[1723242744472,16.5134,155.59,155.49,47.8]
[1723242744670,16.5134,155.59,155.5,1.28590745]
[1723242745073,16.5134,155.59,155.45,20.6180632]
[1723242745401,16.5134,155.59,155.47,19.33221277]
[1723242745586,16.5134,155.59,155.49,47.8]
[1723242745794,6.2192,155.62,155.52,47.8]
[1723242746203,6.2192,155.62,155.49,47.8]
[1723242747005,6.2192,155.62,155.46,113.05098]
[1723242747216,6.2192,155.62,155.47,0.12549]
[1723242747378,6.2192,155.62,155.49,67.13221277]
[1723242747579,6.2192,155.62,155.5,46.66206145]
[1723242747780,6.2192,155.62,155.5,45.37647]
[1723242748103,16.5134,155.66,155.55,47.8]
[1723242748304,16.5134,155.66,155.56,46.2852658]
[1723242748508,1.6064311,155.65,155.54,0.12549]
[1723242748819,1.60669045,155.64,155.53,20.0]
[1723242750898,1.60669045,155.64,155.51,6.7173627]
[1723242751200,8.03273813,155.63,155.49,47.8]
[1723242751409,45.12549,155.62,155.49,6.72030831]
[1723242751589,6.4267,155.6,155.46,47.8]
[1723242751777,0.12549,155.59,155.46,47.8]
[1723242751977,47.92549,155.63,155.47,1.28610459]
[1723242751978,47.8,155.63,155.47,1.28610459]
[1723242752195,0.12549,155.65,155.49,47.8]
[1723242752396,65.37647,155.65,155.5,1.28566174]
[1723242752603,45.37647,155.65,155.5,1.28566174]
[1723242753013,45.37647,155.65,155.47,6.7209684]
[1723242753014,47.8,155.6,155.47,6.7209684]
[1723242753217,47.8,155.6,155.43,47.8]
[1723242753218,8.16029853,155.59,155.43,47.8]
[1723242753384,6.4275,155.58,155.43,47.8]
[1723242753590,1.73309853,155.59,155.43,54.52238903]
[1723242753796,1.60760853,155.59,155.43,54.52238903]
[1723242753994,0.219876,155.67,155.49,47.8]
[1723242754306,47.8,155.63,155.46,47.8]
[1723242754482,1.60740431,155.62,155.46,47.8]
[1723242754809,21.60740431,155.62,155.46,47.8]
[1723242754983,0.219876,155.67,155.57,47.8]
[1723242755180,0.219876,155.67,155.54,47.8]
[1723242755382,0.219876,155.67,155.53,0.12549]
[1723242755604,0.219876,155.67,155.51,1.28535001]
[1723242755605,6.3519,155.66,155.51,1.28535001]
[1723242755798,6.3519,155.66,155.52,0.25098]
[1723242755995,12.7763,155.66,155.52,47.8]
[1723242756390,1.60688591,155.65,155.52,47.8]
[1723242756602,6.3519,155.66,155.52,49.08555668]
[1723242756794,6.3519,155.66,155.53,0.12549]
[1723242757345,6.4251,155.64,155.52,47.8]
[1723242757518,6.3519,155.66,155.53,1.28568558]
[1723242757808,6.3519,155.66,155.53,21.28568558]
[1723242758413,6.3519,155.66,155.55,47.8]
[1723242758585,6.3519,155.66,155.56,1.41070014]
[1723242758912,6.3519,155.66,155.53,20.0]
[1723242758913,1.60651224,155.65,155.53,20.0]
[1723242759116,7.95874644,155.66,155.53,20.0]
[1723242759491,12.7761,155.66,155.53,20.0]
[1723242759905,6.3519,155.66,155.54,1.28556332]
[1723242760086,6.3519,155.66,155.55,1.28533773]
[1723242760598,6.3519,155.66,155.55,21.28533773]
[1723242760787,6.3519,155.66,155.56,0.12549]
[1723242760982,6.3519,155.66,155.53,1.28520506]
[1723242761192,1.60667415,155.65,155.49,47.8]
[1723242761501,1.73262138,155.64,155.49,47.8]
[1723242762104,1.73262138,155.64,155.46,47.8]
[1723242762105,0.12549,155.61,155.46,47.8]
[1723242762304,1.73288845,155.61,155.46,47.8]
[1723242762503,15.6149,155.59,155.43,6.72238903]
[1723242762716,15.6149,155.59,155.44,68.41830305]
[1723242763022,15.6149,155.59,155.47,47.8]
[1723242763194,15.6149,155.59,155.48,1.28591672]
[1723242763395,15.6149,155.59,155.49,1.28591682]
[1723242763895,15.6149,155.59,155.5,67.38319277]
[1723242764091,6.3519,155.66,155.53,47.8]
[1723242764092,21.9668,155.66,155.53,47.8]
[1723242764315,6.4251,155.64,155.5,47.92549]
[1723242764494,28.3913,155.66,155.5,49.08565876]
[1723242764701,28.3913,155.66,155.51,0.12549]
[1723242764908,28.3913,155.66,155.5,47.8]
[1723242764909,1.60701382,155.65,155.5,47.8]
[1723242765108,6.4259,155.62,155.5,47.8]
[1723242765303,6.4259,155.62,155.47,47.8]
[1723242765304,46.6072966,155.61,155.47,47.8]
[1723242765634,46.6072966,155.61,155.44,6.72034486]
[1723242765635,1.6074378,155.6,155.44,54.52034486]
[1723242765924,0.12549,155.59,155.44,54.52034486]
[1723242766118,8.16030621,155.59,155.44,54.52034486]
[1723242766626,1.73310621,155.59,155.44,73.85255763]
[1723242766806,6.55219,155.6,155.44,54.52034486]
[1723242767007,6.55219,155.6,155.44,55.80643519]
[1723242767312,6.55219,155.6,155.45,0.12549]
[1723242767510,6.3519,155.58,155.44,54.52034486]
[1723242767697,8.03574959,155.57,155.44,54.52034486]
[1723242767895,1.60774959,155.57,155.44,47.8]
[1723242768123,1.60774959,155.57,155.44,45.8]
[1723242768315,6.3519,155.58,155.44,45.8]
[1723242769116,6.3519,155.58,155.4,27.6178894]
[1723242769117,6.3519,155.58,155.47,47.8]
[1723242769302,6.3519,155.58,155.48,1.28588027]
[1723242769507,6.3519,155.58,155.47,47.8]
[1723242769717,6.3519,155.58,155.44,54.5216665]
[1723242769718,6.3519,155.58,155.48,1.28604942]
[1723242770041,6.3519,155.58,155.51,47.8]
[1723242770606,1.60730243,155.57,155.45,0.12549]
[1723242770812,1.60745877,155.56,155.44,54.5216665]
[1723242771007,6.3519,155.58,155.44,54.5216665]
[1723242771222,6.3519,155.58,155.47,47.8]
[1723242772034,6.3519,155.58,155.48,1.28598285]
[1723242772630,6.3519,155.58,155.48,1.2859825]
[1723242772924,6.3519,155.58,155.44,6.7216665]
[1723242772925,8.03547813,155.57,155.44,54.5216665]
[1723242773313,6.4284,155.56,155.44,54.5216665]
[1723242773522,0.12549,155.57,155.44,54.5216665]
[1723242773719,51.67908,155.57,155.44,54.5216665]
[1723242773925,12.7795,155.58,155.44,54.5216665]
[1723242774131,6.3519,155.58,155.44,54.5216665]
[1723242774641,6.3519,155.58,155.45,1.28621991]
[1723242774642,47.8,155.57,155.45,1.28621991]
[1723242774861,1.60778282,155.57,155.39,19.33221277]
[1723242775138,54.2288,155.55,155.39,47.8]
[1723242775312,1.60799412,155.54,155.39,47.8]
[1723242775510,8.03721174,155.54,155.39,47.8]
[1723242776033,47.8,155.52,155.38,6.72355882]
[1723242776239,21.7423,155.53,155.37,1.28655408]